bitfinex-derivatives/quotes_ETHF0:USTF0_20250317
["timestamp","ask_amount","ask_price","bid_price","bid_amount"]
[1742223871038,2.40191,1897.3,1896.7,3.2078]
[1742223871039,1.05447,1896.9,1896.7,3.2078]
[1742223871340,1.3446,1896.8,1896.7,4.26234]
[1742223872246,1.3446,1896.8,1896.7,3.2078]
[1742223872638,1.3446,1896.8,1896.7,4.26234]
[1742223873040,3.777,1897.1,1896.9,1.05441]
[1742223873234,1.3446,1897.0,1896.9,4.26221]
[1742223873435,6.92423,1897.3,1896.9,3.2078]
[1742223873436,1.3446,1897.2,1896.9,3.2078]
[1742223873740,1.3446,1897.2,1897.0,6.9798]
[1742223873935,2.39888,1897.2,1897.0,6.9798]
[1742223874135,1.3446,1897.2,1897.0,8.03417]
[1742223874440,1.06202826,1897.5,1897.2,1.05425]
[1742223874639,2.48501,1897.3,1897.2,3.2078]
[1742223874840,2.48501,1897.3,1897.0,6.9978]
[1742223874841,42.2308,1897.3,1897.0,6.9978]
[1742223875041,42.2308,1897.3,1897.0,8.05218]
[1742223875042,43.28504,1897.3,1897.0,8.05218]
[1742223875242,1.05427,1897.2,1897.0,6.9978]
[1742223875447,1.4308,1897.1,1897.0,6.9978]
[1742223875646,2.48512,1897.1,1897.0,3.79]
[1742223875841,1.4308,1897.1,1897.0,8.05218]
[1742223876043,1.4308,1897.1,1897.0,6.9978]
[1742223876443,1.4308,1897.1,1897.0,8.05218]
[1742223876949,1.4308,1897.1,1897.0,6.9978]
[1742223877149,1.4308,1897.1,1897.0,8.05218]
[1742223878152,1.4308,1897.1,1897.0,6.9978]
[1742223878452,1.4308,1897.1,1897.0,8.05218]
[1742223879051,1.4308,1897.1,1897.0,6.9978]
[1742223879251,1.4308,1897.1,1897.0,8.05218]
[1742223880649,2.48512,1897.1,1897.0,3.2078]
[1742223881348,1.4308,1897.1,1897.0,3.2078]
[1742223881751,1.4308,1897.1,1897.0,4.26218]
[1742223882050,2.48512,1897.1,1897.0,3.2078]
[1742223882247,1.4308,1897.1,1897.0,4.26218]
[1742223883453,1.4308,1897.1,1897.0,3.2078]
[1742223883850,2.48512,1897.1,1897.0,3.2078]
[1742223884051,2.48512,1897.1,1896.9,2.49922]
[1742223884247,1.05443,1897.0,1896.8,3.2078]
[1742223884448,2.50583,1896.9,1896.8,6.9768]
[1742223884649,1.4514,1896.9,1896.8,6.9768]
[1742223884957,1.4514,1896.9,1896.8,4.26229]
[1742223885254,1.4514,1896.9,1896.8,5.70709]
[1742223886350,5.51485,1897.3,1897.0,1.05434]
[1742223886550,1.3828,1897.2,1897.0,1.05434]
[1742223886752,1.3828,1897.2,1897.0,3.2078]
[1742223887257,1.3828,1897.2,1897.1,1.05432]
[1742223887649,1.3828,1897.2,1897.1,2.47112]
[1742223887952,2.43706,1897.2,1897.0,8.02713]
[1742223888259,1.3828,1897.2,1897.1,1.05432]
[1742223888557,1.3828,1897.2,1897.0,6.9728]
[1742223888558,2.43706,1897.2,1897.0,8.02714]
[1742223888749,2.43706,1897.2,1897.0,9.44394]
[1742223888951,1.3828,1897.2,1897.0,8.3896]
[1742223889149,1.3828,1897.2,1897.1,1.05432]
[1742223890050,0.00790826,1897.5,1897.1,0.7128]
[1742223890251,2.37325,1897.4,1897.3,3.2078]
[1742223890645,1.3191,1897.4,1897.3,3.2078]
[1742223890845,1.3191,1897.4,1897.3,4.26201]
[1742223891051,1.3191,1897.4,1897.3,3.2078]
[1742223891251,1.3191,1897.4,1897.3,4.26201]
[1742223891755,2.37325,1897.4,1897.3,3.2078]
[1742223893354,1.05421,1897.3,1897.1,3.2078]
[1742223893565,2.38526,1897.2,1897.1,3.2078]
[1742223893858,1.05432,1897.1,1897.0,3.756]
[1742223894057,3.07812,1897.1,1897.0,1.05438]
[1742223894359,3.07812,1897.1,1896.9,1.05439]
[1742223894557,3.07812,1897.1,1896.8,9.0116]
[1742223894858,1.05438,1897.0,1896.8,5.2606]
[1742223895163,1.331,1896.9,1896.8,10.06309]
[1742223895361,1.331,1896.9,1896.8,8.70409]
[1742223897461,2.38543,1896.9,1896.8,7.6496]
[1742223897657,1.331,1896.9,1896.8,3.9016]
[1742223897857,2.38543,1896.9,1896.8,3.9016]
[1742223898958,1.331,1896.9,1896.8,4.95609]
[1742223900666,1.331,1896.9,1896.8,3.9016]
[1742223900866,2.38543,1896.9,1896.8,3.9016]
[1742223901568,2.38543,1896.9,1896.8,4.95609]
[1742223901569,1.331,1896.9,1896.8,4.95609]
[1742223902760,2.38543,1896.9,1896.8,3.9016]
[1742223902965,2.38543,1896.9,1896.8,3.2078]
[1742223903365,1.331,1896.9,1896.8,4.26229]
[1742223903765,2.38543,1896.9,1896.8,3.2078]
[1742223904276,1.331,1896.9,1896.8,3.2078]
[1742223904470,2.38547,1896.9,1896.8,3.2078]
[1742223905071,1.331,1896.9,1896.8,4.26229]
[1742223905776,2.38543,1896.9,1896.8,3.2078]
[1742223907066,1.331,1896.9,1896.8,4.26229]
[1742223907264,2.38543,1896.9,1896.8,3.2078]
[1742223907663,1.331,1896.9,1896.8,3.2078]
[1742223907872,2.38543,1896.9,1896.8,3.2078]
[1742223908175,1.331,1896.9,1896.8,4.26229]
[1742223909271,0.00790826,1897.5,1897.0,2.63595]
[1742223909476,1.05415,1897.4,1897.3,3.2078]
[1742223909664,1.05424,1897.3,1897.1,9.30769]
[1742223909865,1.05426,1897.2,1897.1,7.5927]
[1742223910175,1.05422,1897.3,1897.1,8.64697]
[1742223910369,1.05426,1897.2,1897.1,7.5927]
[1742223910569,1.05426,1897.2,1897.1,3.703]
[1742223910877,1.05431,1897.2,1896.9,6.9088]
[1742223911062,1.3342,1897.1,1897.0,1.05434]
[1742223911469,0.00790826,1897.5,1896.9,9.54484]
[1742223911776,0.00790826,1897.5,1897.2,4.26205]
[1742223911777,1.3342,1897.3,1897.2,4.26205]
[1742223911978,1.3342,1897.3,1897.2,1.05426]
[1742223912168,1.3342,1897.3,1897.2,4.26206]
[1742223912774,1.3342,1897.3,1897.2,4.93366]
[1742223913374,1.3342,1897.3,1897.2,6.33616]
[1742223913762,1.3342,1897.3,1897.2,5.2819]
[1742223914071,0.00790826,1897.5,1897.4,1.05415]
[1742223914279,1.4103,1897.6,1897.5,1.0541]
[1742223914469,0.7077,1897.6,1897.5,1.4193]
[1742223914775,0.7077,1897.6,1897.5,2.4734]
[1742223914973,42.52916,1898.0,1897.7,1.05395]
[1742223915174,5.87,1898.3,1897.9,1.05388]
[1742223915374,1.05382,1898.0,1897.9,3.2078]
[1742223915573,1.0538,1898.1,1897.9,0.00790826]
[1742223915774,1.05382,1898.0,1897.9,3.21570826]
[1742223915969,1.05382,1898.0,1897.9,0.00790826]
[1742223917073,40.8,1898.2,1897.9,1.43050826]
[1742223917479,1.05382,1898.0,1897.9,1.43050826]
[1742223917873,40.8,1898.2,1897.9,2.48435826]
[1742223918179,1.4026,1898.1,1898.0,1.05382]
[1742223918371,1.4026,1898.1,1898.0,2.47642]
[1742223918967,3.70090826,1898.3,1898.1,1.05375]
[1742223919172,6.15715826,1898.3,1898.2,1.4226]
[1742223919472,42.21050826,1898.3,1898.0,1.3379]
[1742223919781,2.46420826,1898.3,1898.1,3.2078]
[1742223919967,0.00790826,1898.3,1898.1,3.2078]
[1742223920285,0.00790826,1898.3,1897.9,0.00790826]
[1742223920286,1.05376,1898.1,1897.9,0.00790826]
[1742223920477,1.3518,1898.0,1897.9,0.00790826]
[1742223920679,2.40562,1898.0,1897.9,0.00790826]
[1742223920877,3.12142,1898.0,1897.9,0.00790826]
[1742223921182,2.0676,1898.0,1897.9,0.00790826]
[1742223921378,2.0676,1898.0,1897.9,1.37790826]
[1742223921379,3.12142,1898.0,1897.9,1.37790826]
[1742223921573,2.0676,1898.0,1897.9,1.37790826]
[1742223921770,1.3518,1898.0,1897.9,5.63958826]
[1742223922176,1.3518,1898.0,1897.9,4.58570826]
[1742223922473,1.3518,1898.0,1897.9,5.63958826]
[1742223922980,2.40562,1898.0,1897.9,0.00790826]
[1742223923479,6.10362,1898.0,1897.5,0.7235]
[1742223923668,6.10362,1898.0,1897.4,3.2078]
[1742223923669,1.0541,1897.5,1897.4,3.2078]
[1742223923874,1.054,1897.7,1897.5,1.05408]
[1742223924176,1.3637,1897.6,1897.5,5.6745]
[1742223924477,3.702,1898.1,1897.5,9.3775]
[1742223924681,1.3637,1897.9,1897.8,3.2078]
[1742223924874,1.3637,1897.9,1897.8,5.67433]
[1742223925474,2.41758,1897.9,1897.8,3.2078]
[1742223925673,2.41758,1897.9,1897.6,5.2145]
[1742223925674,1.05396,1897.8,1897.6,5.2145]
[1742223925880,0.00790826,1898.3,1898.2,1.05371]
[1742223926180,0.00790826,1898.3,1898.2,4.26151]
[1742223926574,0.00790826,1898.3,1898.2,6.26441]
[1742223928279,1.05345,1898.7,1898.4,1.05355]
[1742223928475,1.05354,1898.5,1898.4,3.714]
[1742223928676,2.50242,1898.6,1898.4,5.1088]
[1742223928875,1.4489,1898.6,1898.4,6.1624]
[1742223929076,2.5024,1898.6,1898.4,6.8538]
[1742223929275,1.4489,1898.6,1898.4,5.8002]
[1742223929480,1.05354,1898.5,1898.4,5.8002]
[1742223929779,2.50242,1898.6,1898.4,5.8002]
[1742223930085,2.50243,1898.6,1898.4,5.8002]
[1742223930681,2.50242,1898.6,1898.4,5.8002]
[1742223931383,1.05354,1898.5,1898.4,5.8002]
[1742223931583,2.39174,1898.5,1898.4,5.8002]
[1742223931780,1.3382,1898.5,1898.4,5.8002]
[1742223932384,1.3382,1898.5,1898.4,6.8538]
[1742223932684,2.39174,1898.5,1898.4,5.8002]
[1742223933084,1.3382,1898.5,1898.4,6.8538]
[1742223933484,0.00790826,1898.7,1898.4,5.8002]
[1742223933686,1.45580826,1898.7,1898.6,3.2078]
[1742223934380,2.50923826,1898.7,1898.6,3.2078]
[1742223934583,1.45580826,1898.7,1898.4,9.008]
[1742223934781,1.05351,1898.6,1898.4,9.008]
[1742223934985,1.3962,1898.5,1898.4,10.0616]
[1742223936184,0.00790826,1898.7,1898.5,1.05352]
[1742223936488,1.40410826,1898.7,1898.6,5.65779]
[1742223937590,1.40410826,1898.7,1898.6,3.2078]
[1742223939191,1.40410826,1898.7,1898.6,4.26129]
[1742223939582,1.40410826,1898.7,1898.6,3.2078]
[1742223939885,1.40410826,1898.7,1898.6,4.26129]
[1742223940391,2.45753826,1898.7,1898.6,3.2078]
[1742223940686,1.40410826,1898.7,1898.6,3.2078]
[1742223941383,1.40410826,1898.7,1898.6,4.26129]
[1742223941584,1.40410826,1898.7,1898.6,3.2078]
[1742223941790,2.45753826,1898.7,1898.6,3.2078]
[1742223942288,4.03773826,1898.7,1898.3,3.21570826]
[1742223942491,1.0536,1898.4,1898.3,3.21570826]
[1742223942692,1.0536,1898.4,1898.3,4.65740826]
[1742223942886,1.05358,1898.5,1898.3,4.65740826]
[1742223943087,1.3833,1898.4,1898.3,4.65740826]
[1742223943285,1.3833,1898.4,1898.3,5.71101826]
[1742223943586,1.3833,1898.4,1898.3,3.21570826]
[1742223943587,2.4369,1898.4,1898.3,3.21570826]
[1742223947092,2.4369,1898.4,1898.3,4.26935826]
[1742223947295,2.4369,1898.4,1898.3,3.21570826]
[1742223947794,2.4369,1898.4,1898.3,0.00790826]
[1742223948397,1.3833,1898.4,1898.3,1.06155826]
[1742223948596,2.4369,1898.4,1898.3,1.06155826]
[1742223948795,2.4369,1898.4,1898.3,0.00790826]
[1742223951704,0.00790826,1898.7,1898.3,2.64203826]
[1742223952000,2.38395826,1898.7,1898.5,4.2613]
[1742223952193,2.38395826,1898.7,1898.6,2.0144]
[1742223952393,1.05349,1898.6,1898.5,3.2078]
[1742223952605,1.05354,1898.5,1898.4,5.0131]
[1742223952906,1.05354,1898.5,1898.4,6.8718]
[1742223953103,1.05354,1898.5,1898.4,3.2078]
[1742223953310,1.0536,1898.4,1898.3,0.67320826]
[1742223953607,2.3908,1898.4,1898.3,0.67320826]
[1742223954001,1.3372,1898.4,1898.3,3.11445826]
[1742223954205,2.3908,1898.4,1898.3,2.06080826]
[1742223954801,1.3372,1898.4,1898.3,3.11445826]
[1742223955009,2.3908,1898.4,1898.3,3.11445826]
[1742223955206,1.05352,1898.6,1898.4,1.05358]
[1742223955411,1.3372,1898.6,1898.5,3.2078]
[1742223955706,0.00790826,1898.7,1898.6,1.05349]
[1742223955902,0.00790826,1898.7,1898.6,4.71549]
[1742223956411,0.00790826,1898.7,1898.6,3.662]
[1742223956800,1.43570826,1898.7,1898.6,3.662]
[1742223956999,1.43570826,1898.7,1898.6,4.71549]
[1742223957709,0.00790826,1898.7,1898.6,4.71549]
[1742223957909,0.00790826,1898.7,1898.6,3.662]
[1742223958107,2.48913826,1898.7,1898.6,3.662]
[1742223958611,1.43570826,1898.7,1898.6,3.662]
[1742223958910,0.00790826,1898.7,1898.6,4.71549]
[1742223959299,1.34770826,1898.7,1898.6,4.71549]
[1742223959504,1.34770826,1898.7,1898.6,3.662]
[1742223959704,1.34770826,1898.7,1898.6,4.71549]
[1742223959900,1.34770826,1898.7,1898.6,3.662]
[1742223960105,2.40113826,1898.7,1898.6,3.662]
[1742223960413,1.34770826,1898.7,1898.6,4.71549]
[1742223960817,0.00790826,1898.7,1898.6,4.71549]
[1742223961504,5.87,1899.2,1898.6,7.21549]
[1742223961807,2.39301,1899.1,1899.0,3.2078]
[1742223962113,2.39301,1899.1,1899.0,4.6012]
[1742223963016,2.39301,1899.1,1899.0,3.2078]
[1742223963418,1.05327,1899.0,1898.9,1.3934]
[1742223963616,2.37607,1899.0,1898.9,4.6012]
[1742223963819,1.05332,1898.9,1898.8,3.654]
[1742223964120,1.3228,1898.9,1898.8,4.70738]
[1742223964824,1.3228,1898.9,1898.8,5.42508]
[1742223965820,1.06109826,1899.2,1898.8,4.3717]
[1742223966021,1.3155,1899.1,1899.0,4.26107]
[1742223966428,0.00790826,1899.2,1899.1,1.05321]
[1742223966628,0.00790826,1899.2,1899.1,1.367]
[1742223966928,1.06105826,1899.2,1899.1,1.367]
[1742223967120,2.37655826,1899.2,1899.1,1.367]
[1742223967725,1.32340826,1899.2,1899.1,1.367]
[1742223968022,2.37655826,1899.2,1899.1,1.367]
[1742223968628,1.32340826,1899.2,1899.1,2.42021]
[1742223968821,2.37660826,1899.2,1899.0,4.26102]
[1742223969426,2.37660826,1899.2,1899.1,1.05321]
[1742223969929,1.32340826,1899.2,1899.1,2.43771]
[1742223970129,2.37655826,1899.2,1899.1,1.3845]
[1742223970827,1.32340826,1899.2,1898.8,3.9255]
[1742223971031,1.05356,1898.5,1898.4,3.2078]
[1742223971230,1.05356,1898.5,1898.4,4.6334]
[1742223971633,1.05353,1898.6,1898.4,5.68698]
[1742223971831,1.33,1898.5,1898.4,5.68698]
[1742223972031,1.33,1898.5,1898.4,4.6334]
[1742223972032,2.38354,1898.5,1898.4,4.6334]
[1742223972328,1.0536,1898.4,1898.3,0.00790826]
[1742223972628,3.0904,1898.4,1898.3,0.00790826]
[1742223974133,2.0368,1898.4,1898.3,0.00790826]
[1742223974327,3.0904,1898.4,1898.3,1.40260826]
[1742223974528,1.33,1898.4,1898.3,2.45625826]
[1742223974724,1.33,1898.4,1898.3,5.66405826]
[1742223975225,1.05353,1898.6,1898.3,4.61040826]
[1742223975437,1.4327,1898.5,1898.4,1.3947]
[1742223975629,1.4327,1898.5,1898.4,4.6025]
[1742223975825,1.05346,1898.7,1898.4,4.6025]
[1742223976135,1.4327,1898.7,1898.5,0.707]
[1742223976330,1.05349,1898.6,1898.5,0.707]
[1742223976529,1.05349,1898.6,1898.4,3.2078]
[1742223976732,1.4327,1898.5,1898.3,0.00790826]
[1742223977035,1.0536,1898.4,1898.3,0.00790826]
[1742223978433,1.4327,1898.5,1898.3,0.00790826]
[1742223978628,2.48628,1898.5,1898.3,1.06155826]
[1742223978834,2.48628,1898.5,1898.4,1.4077]
[1742223979334,1.0536,1898.4,1898.3,0.00790826]
[1742223979532,2.4097,1898.4,1898.3,0.00790826]
[1742223979834,1.3561,1898.4,1898.3,0.00790826]
[1742223980036,2.4097,1898.4,1898.3,0.00790826]
[1742223982334,6.0497,1898.4,1898.3,0.00790826]
[1742223983630,6.13835983,1898.4,1898.3,0.00790826]
[1742223983830,6.13835552,1898.4,1898.3,0.00790826]
[1742223984030,6.0497,1898.4,1898.3,0.00790826]
[1742223984236,2.4097,1898.4,1898.3,0.00790826]
[1742223984439,1.3561,1898.4,1898.3,4.70255826]
[1742223984638,1.05353,1898.6,1898.4,1.05358]
[1742223984830,1.412,1898.5,1898.4,6.32208]
[1742223985030,1.05343,1898.7,1898.5,1.05351]
[1742223985226,1.412,1898.7,1898.6,2.45149]
[1742223985528,1.05332,1898.9,1898.7,1.05341]
[1742223986838,1.05354,1898.5,1898.4,2.0952]
[1742223987037,1.0536,1898.4,1898.3,6.85670826]
[1742223987334,2.3949,1898.4,1898.3,6.85670826]
[1742223987530,1.3413,1898.4,1898.3,6.85670826]
[1742223987730,1.3413,1898.4,1898.3,7.91035826]
[1742223988932,0.6744,1898.8,1898.3,9.35670826]
[1742223989133,1.3413,1898.8,1898.6,1.05345]
[1742223989433,1.3413,1898.8,1898.7,5.3271]
[1742223989742,1.3413,1898.8,1898.7,6.38053]
[1742223990132,1.3413,1898.8,1898.7,5.3271]
[1742223990642,2.39468,1898.8,1898.7,5.3271]
[1742223990844,1.3413,1898.8,1898.7,6.38053]
[1742223991045,2.39468,1898.8,1898.7,5.3271]
[1742223992239,0.00790826,1899.2,1898.7,5.3271]
[1742223992445,0.00790826,1899.2,1899.1,3.2078]
[1742223992651,1.06105826,1899.2,1899.1,3.2078]
[1742223992837,1.06105826,1899.2,1899.0,3.64]
[1742223993040,1.3702,1899.1,1899.0,4.69327]
[1742223993346,0.00790826,1899.2,1899.1,1.05321]
[1742223993538,0.00790826,1899.2,1899.1,4.98051]
[1742223994846,0.00790826,1899.2,1899.1,3.9273]
[1742223995250,0.00790826,1899.2,1899.1,4.98051]
[1742223995549,0.00790826,1899.2,1899.1,3.9273]
[1742223995752,0.00790826,1899.2,1899.1,7.5673]
[1742223995941,1.34490826,1899.2,1899.1,7.5673]
[1742223996542,2.39805826,1899.2,1899.1,3.9273]
[1742223996736,3.11465826,1899.2,1899.1,3.9273]
[1742223997343,2.06150826,1899.2,1899.1,0.7195]
[1742223997543,2.06150826,1899.2,1899.1,3.9273]
[1742223998143,1.34490826,1899.2,1899.1,4.98051]
[1742223998345,0.00790826,1899.2,1899.1,8.62051]
[1742223998752,0.00790826,1899.2,1899.1,7.5673]
[1742223998951,1.36380826,1899.2,1899.1,7.5673]
[1742223999846,1.36380826,1899.2,1899.1,8.62051]
[1742224000341,0.00790826,1899.2,1899.1,8.62051]
[1742224001251,1.36380826,1899.2,1899.1,7.5673]
[1742224001450,1.36380826,1899.2,1899.1,4.98051]
[1742224001651,1.36380826,1899.2,1899.1,3.9273]
[1742224001852,2.41695826,1899.2,1899.1,3.9273]
[1742224003151,1.36380826,1899.2,1899.1,4.98051]
[1742224003348,1.36380826,1899.2,1899.1,3.9273]
[1742224003553,1.36380826,1899.2,1899.1,4.98051]
[1742224003957,0.00790826,1899.2,1899.1,8.61951]
[1742224005756,3.2078,1899.8,1899.1,8.61951]
[1742224005956,1.34,1899.6,1899.4,4.26083]
[1742224006154,1.34,1899.6,1899.5,1.05299]
[1742224006357,42.55639,1899.9,1899.5,5.0706]
[1742224006655,1.34,1899.8,1899.6,4.26072]
[1742224006958,1.05288,1899.7,1899.6,1.4316]
[1742224007155,1.05293,1899.6,1899.5,0.00790826]
[1742224007456,2.39293,1899.6,1899.5,0.00790826]
[1742224008047,2.39293,1899.6,1899.5,1.35480826]
[1742224008248,1.34,1899.6,1899.5,1.35480826]
[1742224008444,2.39293,1899.6,1899.5,1.35480826]
[1742224009853,1.34,1899.6,1899.5,1.35480826]
[1742224010058,1.34,1899.6,1899.5,2.40779826]
[1742224010447,1.34,1899.6,1899.5,6.04679826]
[1742224013257,2.39293,1899.6,1899.5,3.64690826]
[1742224013555,1.05315,1899.2,1899.1,3.2078]
[1742224013761,4.80265,1899.5,1899.1,3.2078]
[1742224013957,1.05315,1899.2,1899.1,3.2078]
[1742224014155,1.05314,1899.3,1899.1,3.2078]
[1742224014361,1.4537,1899.2,1899.1,4.26098]
[1742224014657,1.4537,1899.2,1899.1,4.26101]
[1742224014864,0.00790826,1899.3,1899.2,1.05315]
[1742224015156,0.00790826,1899.3,1899.2,1.72815]
[1742224015359,0.00790826,1899.3,1899.1,6.8468]
[1742224015664,0.00790826,1899.3,1899.1,7.89998]
[1742224015865,0.00790826,1899.3,1899.2,1.05315]
[1742224016055,1.46160826,1899.3,1899.2,1.05315]
[1742224016956,1.46160826,1899.3,1899.1,7.89997]
[1742224017157,1.46160826,1899.3,1899.2,1.05315]
[1742224018764,1.46160826,1899.3,1899.1,6.8468]
[1742224018765,1.46160826,1899.3,1899.1,3.2078]
[1742224018962,2.51475826,1899.3,1899.1,6.8468]
[1742224019164,2.51475826,1899.3,1899.1,7.90001]
[1742224019357,2.46355,1899.2,1899.1,6.8468]
[1742224019755,1.4104,1899.2,1899.1,6.8468]
[1742224019954,1.4104,1899.2,1899.1,7.90001]
[1742224020356,0.00790826,1899.3,1899.2,1.05315]
[1742224020557,0.00790826,1899.3,1899.2,1.71025]
[1742224021567,0.00790826,1899.3,1899.2,0.6571]
[1742224021869,1.06100826,1899.3,1899.1,6.8468]
[1742224022161,2.48185,1899.2,1899.1,6.8468]
[1742224022362,2.48185,1899.2,1899.1,3.2078]
[1742224022765,1.4287,1899.2,1899.1,3.2078]
[1742224022957,2.48185,1899.2,1899.1,3.2078]
[1742224023161,1.4287,1899.2,1899.1,3.2078]
[1742224023561,2.48185,1899.2,1899.1,3.2078]
[1742224023869,1.4287,1899.2,1899.1,4.26101]
[1742224024263,2.48185,1899.2,1899.1,3.2078]
[1742224025055,1.4287,1899.2,1899.1,4.26101]
[1742224025459,0.00790826,1899.3,1899.2,1.05315]
[1742224025666,0.00790826,1899.3,1899.2,5.34905]
[1742224025964,1.33040826,1899.3,1899.2,5.34905]
[1742224026865,0.00790826,1899.3,1899.2,5.34905]
[1742224027666,0.00790826,1899.3,1899.2,4.2959]
[1742224027857,1.06100826,1899.3,1899.1,4.26099]
[1742224028063,2.37565,1899.2,1899.1,3.2078]
[1742224029575,1.3225,1899.2,1899.1,3.2078]
[1742224030171,1.3225,1899.2,1899.1,4.26101]
[1742224031278,1.3225,1899.2,1899.1,6.8458]
[1742224031467,2.37565,1899.2,1899.1,6.8458]
[1742224031786,1.3225,1899.2,1899.1,7.89901]
[1742224032275,1.06103826,1899.3,1899.1,7.89898]
[1742224032577,1.4457,1899.2,1899.1,6.8458]
[1742224032762,1.4457,1899.2,1899.1,3.2078]
[1742224032962,2.49885,1899.2,1899.1,3.2078]
[1742224034167,1.4457,1899.2,1899.1,4.26101]
[1742224034367,0.00790826,1899.3,1899.2,1.05315]
[1742224034574,0.00790826,1899.3,1899.2,2.36335]
[1742224034869,0.00790826,1899.3,1899.2,6.00135]
[1742224035375,0.00790826,1899.3,1899.2,6.68528456]
[1742224035574,1.3859,1899.6,1899.5,1.05299]
[1742224035872,1.3859,1899.6,1899.5,4.26079]
[1742224036476,1.3859,1899.6,1899.5,5.57799]
[1742224036667,1.72365,1899.8,1899.6,1.05293]
[1742224036867,1.3859,1899.7,1899.6,1.05293]
[1742224037370,1.05272,1900.0,1899.7,1.05285]
[1742224037573,1.3859,1899.9,1899.8,0.7115]
[1742224037773,1.3859,1899.9,1899.8,3.9193]
[1742224038376,1.3859,1899.9,1899.8,8.61012]
[1742224039986,2.43867,1899.9,1899.8,3.2078]
[1742224040287,1.3859,1899.9,1899.8,4.26062]
[1742224041282,1.3859,1899.9,1899.8,4.97242]
[1742224041485,1.3288,1900.0,1899.9,1.05272]
[1742224041687,1.3288,1900.0,1899.9,5.36352]
[1742224042286,1.3288,1900.0,1899.9,5.36357]
[1742224043289,4.69054,1900.4,1900.1,1.05262]
[1742224043478,1.3288,1900.2,1900.1,4.26042]
[1742224043784,1.3288,1900.2,1900.1,4.26832826]
[1742224044184,5.87,1900.8,1900.1,6.85270826]
[1742224044384,1.4066,1900.3,1900.1,3.64490826]
[1742224044579,1.4066,1900.3,1900.2,4.2604]
[1742224044778,1.4066,1900.3,1900.2,3.2078]
[1742224045082,2.45914,1900.3,1900.2,3.2078]
[1742224045282,1.0526,1900.2,1900.1,0.00790826]
[1742224045480,3.1811,1900.2,1900.1,0.00790826]
[1742224046090,2.1285,1900.2,1900.1,0.00790826]
[1742224046284,2.1285,1900.2,1900.1,1.06056826]
[1742224046884,2.1285,1900.2,1900.1,0.00790826]
[1742224047393,3.1811,1900.2,1900.1,0.00790826]
[1742224047579,2.1285,1900.2,1900.1,0.00790826]
[1742224048485,2.1285,1900.2,1900.1,1.06056826]
[1742224048788,1.4066,1900.2,1900.1,1.06056826]
[1742224049591,0.7252,1900.6,1900.2,2.63151]
[1742224049791,0.7252,1900.6,1900.4,4.26026]
[1742224050493,0.7252,1900.6,1900.4,3.2078]
[1742224050679,0.7252,1900.6,1900.5,1.05243]
[1742224050884,3.17299,1900.6,1900.4,4.26026]
[1742224051094,2.1206,1900.6,1900.5,1.05243]
[1742224051385,1.7776,1900.6,1900.4,4.26025]
[1742224051590,0.7252,1900.6,1900.5,1.05243]
[1742224051789,1.77758,1900.6,1900.4,4.26026]
[1742224052089,1.05243,1900.5,1900.4,3.2078]
[1742224052690,1.77763,1900.6,1900.4,3.2078]
[1742224052887,1.05243,1900.5,1900.4,3.2078]
[1742224053785,1.77758,1900.6,1900.5,1.05243]
[1742224054095,1.77758,1900.6,1900.4,3.2078]
[1742224054487,1.77758,1900.6,1900.5,1.05243]
[1742224054686,1.77758,1900.6,1900.5,2.42493]
[1742224055488,1.05243,1900.5,1900.4,3.2078]
[1742224056690,1.05243,1900.5,1900.4,4.26029]
[1742224057190,1.77761,1900.6,1900.5,1.05243]
[1742224057391,0.7252,1900.6,1900.5,1.05243]
[1742224057595,0.7252,1900.6,1900.5,2.41393]
[1742224058690,0.7252,1900.6,1900.4,6.8438]
[1742224058691,1.05243,1900.5,1900.4,6.8438]
[1742224059101,1.05243,1900.5,1900.4,3.2078]
[1742224059699,1.05243,1900.5,1900.4,4.26026]
[1742224059895,1.05243,1900.5,1900.4,5.59966]
[1742224060396,1.05243,1900.5,1900.4,3.2078]
[1742224060997,0.7252,1900.6,1900.4,4.26029]
[1742224061300,1.05243,1900.5,1900.4,4.26029]
[1742224061599,1.77762,1900.6,1900.5,1.05243]
[1742224061900,0.7252,1900.6,1900.5,2.39183]
[1742224062200,1.77758,1900.6,1900.5,1.3394]
[1742224062393,0.7252,1900.6,1900.4,3.2078]
[1742224062597,1.05243,1900.5,1900.4,4.6046]
[1742224063598,2.45963,1900.5,1900.4,4.6046]
[1742224063788,2.45963,1900.5,1900.4,3.2078]
[1742224064197,2.45963,1900.5,1900.4,4.6046]
[1742224065095,1.4072,1900.5,1900.4,5.65709]
[1742224066094,1.7659,1900.8,1900.6,1.05235]
[1742224066295,1.408,1900.7,1900.6,4.26015]
[1742224066492,1.408,1900.7,1900.6,4.91975]
[1742224067196,0.7136,1901.0,1900.7,1.05231]
[1742224067392,0.7136,1901.0,1900.8,3.2078]
[1742224067393,1.408,1900.9,1900.8,3.2078]
[1742224067597,7.89488,1901.2,1900.8,3.2078]
[1742224067797,1.408,1901.1,1900.8,3.2078]
[1742224067997,1.05218,1901.0,1900.8,3.2078]
[1742224068198,1.408,1900.9,1900.8,3.2078]
[1742224068604,1.408,1900.9,1900.8,4.26007]
[1742224068799,1.408,1900.9,1900.8,3.2078]
[1742224068998,1.408,1900.9,1900.8,4.26007]
[1742224069603,2.46021,1900.9,1900.8,3.2078]
[1742224069997,1.05227,1900.8,1900.6,0.6596]
[1742224070194,1.4381,1900.7,1900.6,1.71195]
[1742224070591,2.49044,1900.7,1900.5,6.8428]
[1742224070795,1.4381,1900.7,1900.5,7.89518]
[1742224071103,1.4381,1900.6,1900.5,7.89518]
[1742224071903,1.4381,1900.6,1900.5,4.26018]